[Event "*** SCC Grand Prix: Titled Tuesday Blitz"]
[Site "Chess.com"]
[Date "2020.09.29"]
[Round "2"]
[White "WiktoriaPOL"]
[Black "UmarovSabir"]
[Result "0-1"]
[WhiteElo "2053"]
[BlackElo "2379"]
[TimeControl "180+1"]
[EndTime "10:15:40 PDT"]
[Termination "UmarovSabir won by resignation"]

1. c4 {[%clk 0:03:00.9]} 1... g6 {[%clk 0:02:59]} 2. Nc3 {[%clk 0:03:00.6]} 2...
Bg7 {[%clk 0:02:58.3]} 3. g3 {[%clk 0:03:00.4]} 3... e5 {[%clk 0:02:56.5]} 4.
Bg2 {[%clk 0:02:59.9]} 4... Nc6 {[%clk 0:02:55.9]} 5. e4 {[%clk 0:02:59.5]} 5...
d6 {[%clk 0:02:55.9]} 6. Nge2 {[%clk 0:02:59.6]} 6... Be6 {[%clk 0:02:55.4]} 7.
d3 {[%clk 0:02:59]} 7... Qd7 {[%clk 0:02:54]} 8. O-O {[%clk 0:02:56]} 8... Bh3
{[%clk 0:02:52.2]} 9. Nd5 {[%clk 0:02:55.4]} 9... O-O-O {[%clk 0:02:50.2]} 10.
Rb1 {[%clk 0:02:51.5]} 10... h5 {[%clk 0:02:48.9]} 11. f3 {[%clk 0:02:47.3]}
11... h4 {[%clk 0:02:45.3]} 12. g4 {[%clk 0:02:47]} 12... Bxg2 {[%clk
0:02:45.2]} 13. Kxg2 {[%clk 0:02:46.5]} 13... h3+ {[%clk 0:02:45.3]} 14. Kg3
{[%clk 0:02:31.1]} 14... f5 {[%clk 0:02:40.3]} 15. exf5 {[%clk 0:02:27.5]} 15...
gxf5 {[%clk 0:02:40.1]} 16. g5 {[%clk 0:02:26.2]} 16... Nge7 {[%clk 0:02:20]}
17. f4 {[%clk 0:02:19.4]} 17... Nxd5 {[%clk 0:02:13.1]} 18. cxd5 {[%clk
0:02:19]} 18... Ne7 {[%clk 0:02:13.6]} 19. Qb3 {[%clk 0:02:11.4]} 19... e4
{[%clk 0:02:05.3]} 20. dxe4 {[%clk 0:02:10]} 20... fxe4 {[%clk 0:02:05.1]} 21.
Be3 {[%clk 0:02:06]} 21... Kb8 {[%clk 0:01:47.7]} 22. Nd4 {[%clk 0:02:02]} 22...
Bxd4 {[%clk 0:01:46.4]} 23. Bxd4 {[%clk 0:01:58.1]} 23... Nf5+ {[%clk
0:01:46.6]} 24. Kf2 {[%clk 0:01:56.4]} 24... Nxd4 {[%clk 0:01:46.1]} 25. Qb4
{[%clk 0:01:55.9]} 25... Nf5 {[%clk 0:01:40.6]} 26. Rbc1 {[%clk 0:01:53.5]}
26... Rh4 {[%clk 0:01:32.5]} 27. Ke1 {[%clk 0:01:49.4]} 27... Ne3 {[%clk
0:01:28.9]} 28. Rf2 {[%clk 0:01:46.1]} 28... Ng2+ {[%clk 0:01:26.7]} 29. Kf1
{[%clk 0:01:44.6]} 29... e3 {[%clk 0:01:10]} 30. Rf3 {[%clk 0:01:29.8]} 30...
Rf8 {[%clk 0:01:00.8]} 31. Rc4 {[%clk 0:01:19.4]} 31... Qg4 {[%clk 0:00:43.1]}
32. Rg3 {[%clk 0:01:09.1]} 32... Qd1+ {[%clk 0:00:40.2]} 0-1

[Event "*** SCC Grand Prix: Titled Tuesday Blitz"]
[Site "Chess.com"]
[Date "2020.09.29"]
[Round "2"]
[White "alexrustemov"]
[Black "Djager97"]
[Result "1-0"]
[WhiteElo "2738"]
[BlackElo "2480"]
[TimeControl "180+1"]
[EndTime "10:15:45 PDT"]
[Termination "alexrustemov won by resignation"]

1. d4 {[%clk 0:03:00.9]} 1... Nf6 {[%clk 0:03:00.1]} 2. Nf3 {[%clk 0:03:00.4]}
2... c5 {[%clk 0:02:59.6]} 3. d5 {[%clk 0:02:56.7]} 3... d6 {[%clk 0:02:59.5]}
4. c4 {[%clk 0:02:56.2]} 4... g6 {[%clk 0:02:59.6]} 5. Nc3 {[%clk 0:02:55.6]}
5... Bg7 {[%clk 0:03:00.1]} 6. h3 {[%clk 0:02:55.4]} 6... O-O {[%clk 0:03:00.6]}
7. e4 {[%clk 0:02:56]} 7... e6 {[%clk 0:03:01.1]} 8. Bd3 {[%clk 0:02:56.7]} 8...
exd5 {[%clk 0:03:01.5]} 9. cxd5 {[%clk 0:02:57.4]} 9... Re8 {[%clk 0:02:55.5]}
10. O-O {[%clk 0:02:57]} 10... Nbd7 {[%clk 0:02:56.1]} 11. Bf4 {[%clk
0:02:50.9]} 11... c4 {[%clk 0:02:52.9]} 12. Bc2 {[%clk 0:02:46.3]} 12... Nc5
{[%clk 0:02:52.4]} 13. Re1 {[%clk 0:02:42.2]} 13... b5 {[%clk 0:02:42.7]} 14. a3
{[%clk 0:02:13.6]} 14... a6 {[%clk 0:02:41.8]} 15. Nd4 {[%clk 0:02:11.5]} 15...
Bb7 {[%clk 0:02:32.3]} 16. Qd2 {[%clk 0:02:11.1]} 16... Nh5 {[%clk 0:02:14.4]}
17. Be3 {[%clk 0:02:10.6]} 17... Nf6 {[%clk 0:01:53.6]} 18. f3 {[%clk
0:02:09.9]} 18... Nh5 {[%clk 0:01:53.3]} 19. g4 {[%clk 0:02:09]} 19... Nf6
{[%clk 0:01:51.3]} 20. Rad1 {[%clk 0:02:08.2]} 20... h5 {[%clk 0:01:49.6]} 21.
Kg2 {[%clk 0:02:08.2]} 21... hxg4 {[%clk 0:01:35.4]} 22. hxg4 {[%clk 0:02:09.1]}
22... Nfd7 {[%clk 0:01:36.1]} 23. Rh1 {[%clk 0:02:00.4]} 23... Ne5 {[%clk
0:01:28]} 24. Rh3 {[%clk 0:02:00]} 24... Ncd3 {[%clk 0:01:12.7]} 25. Bxd3 {[%clk
0:01:54.2]} 25... Nxd3 {[%clk 0:01:11.7]} 26. Rdh1 {[%clk 0:01:53.6]} 26... Qf6
{[%clk 0:00:56.6]} 27. Nde2 {[%clk 0:01:44.7]} 27... a5 {[%clk 0:00:27.8]} 28.
Bd4 {[%clk 0:01:44.4]} 28... Qxd4 {[%clk 0:00:17]} 29. Nxd4 {[%clk 0:01:45.3]}
29... Bxd4 {[%clk 0:00:17.8]} 30. Rh7 {[%clk 0:01:25.3]} 30... b4 {[%clk
0:00:17.4]} 31. Qh6 {[%clk 0:01:23.9]} 1-0

[Event "*** SCC Grand Prix: Titled Tuesday Blitz"]
[Site "Chess.com"]
[Date "2020.09.29"]
[Round "2"]
[White "zmeeed67"]
[Black "RU_B9"]
[Result "1-0"]
[WhiteElo "2364"]
[BlackElo "1886"]
[TimeControl "180+1"]
[EndTime "10:15:48 PDT"]
[Termination "zmeeed67 won on time"]

1. e4 {[%clk 0:03:00.9]} 1... c5 {[%clk 0:02:59.8]} 2. g3 {[%clk 0:03:00.8]}
2... g6 {[%clk 0:02:59]} 3. Bg2 {[%clk 0:03:01]} 3... Bg7 {[%clk 0:02:59.7]} 4.
Ne2 {[%clk 0:03:01.6]} 4... Nc6 {[%clk 0:02:57.6]} 5. O-O {[%clk 0:03:01.9]}
5... e5 {[%clk 0:02:47.8]} 6. Nbc3 {[%clk 0:03:02]} 6... d6 {[%clk 0:02:47.1]}
7. a3 {[%clk 0:03:02.4]} 7... h5 {[%clk 0:02:46.4]} 8. h3 {[%clk 0:02:59.8]}
8... Nge7 {[%clk 0:02:24.6]} 9. Rb1 {[%clk 0:02:58.5]} 9... h4 {[%clk
0:02:18.9]} 10. g4 {[%clk 0:02:58.2]} 10... f5 {[%clk 0:02:08.7]} 11. exf5
{[%clk 0:02:35.6]} 11... gxf5 {[%clk 0:02:09.6]} 12. gxf5 {[%clk 0:02:35]} 12...
Bxf5 {[%clk 0:01:48.7]} 13. d3 {[%clk 0:02:33.8]} 13... Qd7 {[%clk 0:01:44.4]}
14. Kh2 {[%clk 0:02:33.1]} 14... O-O-O {[%clk 0:01:41.9]} 15. Ne4 {[%clk
0:02:19.3]} 15... Rdg8 {[%clk 0:01:32.6]} 16. b4 {[%clk 0:02:18.4]} 16... b6
{[%clk 0:00:51.8]} 17. Bg5 {[%clk 0:01:50.1]} 17... Qe6 {[%clk 0:00:22.6]} 18.
bxc5 {[%clk 0:01:40]} 18... dxc5 {[%clk 0:00:21.8]} 19. f4 {[%clk 0:01:34.5]}
19... Ng6 {[%clk 0:00:12.4]} 20. Qd2 {[%clk 0:01:16.8]} 20... Nd4 {[%clk
0:00:08.3]} 21. Nxd4 {[%clk 0:01:14]} 21... exd4 {[%clk 0:00:07.8]} 22. Rbe1
{[%clk 0:01:11.7]} 22... Qd7 {[%clk 0:00:04.7]} 23. Qf2 {[%clk 0:01:06.8]} 23...
Rf8 {[%clk 0:00:01.4]} 24. Qf3 {[%clk 0:01:06.9]} 1-0

[Event "*** SCC Grand Prix: Titled Tuesday Blitz"]
[Site "Chess.com"]
[Date "2020.09.29"]
[Round "2"]
[White "Andreikka"]
[Black "crazy_but_lazy"]
[Result "1-0"]
[WhiteElo "2855"]
[BlackElo "2544"]
[TimeControl "180+1"]
[EndTime "10:16:06 PDT"]
[Termination "Andreikka won by resignation"]

1. c4 {[%clk 0:03:00.9]} 1... e5 {[%clk 0:02:59.6]} 2. Nc3 {[%clk 0:02:59.9]}
2... Bb4 {[%clk 0:02:59]} 3. Nd5 {[%clk 0:02:59.1]} 3... Be7 {[%clk 0:02:58.8]}
4. d4 {[%clk 0:02:56.3]} 4... d6 {[%clk 0:02:55.1]} 5. e4 {[%clk 0:02:43.5]}
5... c6 {[%clk 0:02:48.9]} 6. Nxe7 {[%clk 0:02:41.2]} 6... Qxe7 {[%clk
0:02:49.8]} 7. Ne2 {[%clk 0:02:27.3]} 7... Nf6 {[%clk 0:02:49.2]} 8. f3 {[%clk
0:02:27.2]} 8... O-O {[%clk 0:02:46.5]} 9. Nc3 {[%clk 0:02:25.4]} 9... a6 {[%clk
0:02:38.9]} 10. Be2 {[%clk 0:02:16.3]} 10... exd4 {[%clk 0:02:27]} 11. Qxd4
{[%clk 0:02:15.8]} 11... Be6 {[%clk 0:02:27.4]} 12. O-O {[%clk 0:02:04.9]} 12...
h6 {[%clk 0:02:13.1]} 13. Bf4 {[%clk 0:02:03.8]} 13... Rd8 {[%clk 0:02:10.9]}
14. Rad1 {[%clk 0:02:03]} 14... d5 {[%clk 0:01:41.3]} 15. e5 {[%clk 0:01:53.8]}
15... Ne8 {[%clk 0:01:36.4]} 16. Be3 {[%clk 0:01:34.6]} 16... Nd7 {[%clk
0:01:26.3]} 17. cxd5 {[%clk 0:01:27.8]} 17... Bxd5 {[%clk 0:01:07.7]} 18. Nxd5
{[%clk 0:01:27.7]} 18... cxd5 {[%clk 0:01:08.6]} 19. f4 {[%clk 0:01:28.4]} 19...
Nc7 {[%clk 0:01:07.5]} 20. Bf3 {[%clk 0:01:27.5]} 20... Rac8 {[%clk 0:00:37.2]}
21. Kh1 {[%clk 0:01:10.3]} 21... Nb8 {[%clk 0:00:31.3]} 22. Qb6 {[%clk 0:01:03]}
22... Ne6 {[%clk 0:00:26.1]} 23. Rxd5 {[%clk 0:00:59.8]} 23... Rxd5 {[%clk
0:00:24]} 24. Bxd5 {[%clk 0:01:00.7]} 24... Nc6 {[%clk 0:00:20.6]} 25. f5 {[%clk
0:00:54.7]} 25... Ng5 {[%clk 0:00:19.4]} 26. e6 {[%clk 0:00:52.8]} 26... fxe6
{[%clk 0:00:18.4]} 27. Bxg5 {[%clk 0:00:53.2]} 1-0

[Event "*** SCC Grand Prix: Titled Tuesday Blitz"]
[Site "Chess.com"]
[Date "2020.09.29"]
[Round "2"]
[White "Snegokhod"]
[Black "HouseOfDurin"]
[Result "1-0"]
[WhiteElo "2404"]
[BlackElo "2140"]
[TimeControl "180+1"]
[EndTime "10:16:09 PDT"]
[Termination "Snegokhod won by checkmate"]

1. e4 {[%clk 0:03:00.9]} 1... c5 {[%clk 0:03:00.2]} 2. Nf3 {[%clk 0:03:00.3]}
2... Nc6 {[%clk 0:03:00.6]} 3. c3 {[%clk 0:02:58.4]} 3... d5 {[%clk 0:03:00.2]}
4. exd5 {[%clk 0:02:58.1]} 4... Qxd5 {[%clk 0:03:01.1]} 5. d4 {[%clk 0:02:57.3]}
5... Bf5 {[%clk 0:03:01.7]} 6. Be2 {[%clk 0:02:53.7]} 6... cxd4 {[%clk 0:03:01]}
7. cxd4 {[%clk 0:02:53.3]} 7... Bxb1 {[%clk 0:03:00.6]} 8. Rxb1 {[%clk
0:02:53.1]} 8... e6 {[%clk 0:03:00.4]} 9. O-O {[%clk 0:02:51.8]} 9... Nf6 {[%clk
0:02:59.7]} 10. Be3 {[%clk 0:02:51]} 10... Be7 {[%clk 0:02:52.7]} 11. b3 {[%clk
0:02:49.9]} 11... O-O {[%clk 0:02:50.3]} 12. Bc4 {[%clk 0:02:49.3]} 12... Qd7
{[%clk 0:02:45.6]} 13. Ne5 {[%clk 0:02:48.6]} 13... Nxe5 {[%clk 0:02:38.1]} 14.
dxe5 {[%clk 0:02:48.3]} 14... Nd5 {[%clk 0:02:38.1]} 15. Bxd5 {[%clk 0:02:46.6]}
15... Qxd5 {[%clk 0:02:39]} 16. Qxd5 {[%clk 0:02:45.9]} 16... exd5 {[%clk
0:02:39.9]} 17. Rfd1 {[%clk 0:02:45.3]} 17... Rfd8 {[%clk 0:02:39.7]} 18. Rbc1
{[%clk 0:02:44.2]} 18... Rd7 {[%clk 0:02:35.5]} 19. Kf1 {[%clk 0:02:42.3]} 19...
b6 {[%clk 0:02:26.3]} 20. Rc6 {[%clk 0:02:38.9]} 20... Rad8 {[%clk 0:02:12.7]}
21. Bd4 {[%clk 0:02:37.8]} 21... Bb4 {[%clk 0:02:09.3]} 22. Rdc1 {[%clk
0:02:34.6]} 22... Kf8 {[%clk 0:02:05.3]} 23. Ke2 {[%clk 0:02:33.6]} 23... Ke7
{[%clk 0:02:04.2]} 24. f4 {[%clk 0:02:32.9]} 24... h6 {[%clk 0:01:37.7]} 25. f5
{[%clk 0:02:32.3]} 25... Bc5 {[%clk 0:01:10]} 26. Bxc5+ {[%clk 0:02:30.4]} 26...
bxc5 {[%clk 0:01:09.5]} 27. R1xc5 {[%clk 0:02:29.6]} 27... d4 {[%clk 0:01:09.4]}
28. Kd3 {[%clk 0:02:29.5]} 28... Rg8 {[%clk 0:00:46.3]} 29. Rc7 {[%clk
0:02:24.2]} 29... Rd8 {[%clk 0:00:34.1]} 30. Rxd7+ {[%clk 0:02:21]} 30... Rxd7
{[%clk 0:00:35]} 31. Rc4 {[%clk 0:02:20.6]} 31... Rd5 {[%clk 0:00:32.9]} 32. Ke4
{[%clk 0:02:18.5]} 32... Ra5 {[%clk 0:00:32.6]} 33. a4 {[%clk 0:02:12.9]} 33...
f6 {[%clk 0:00:29.3]} 34. e6 {[%clk 0:02:06.6]} 34... Re5+ {[%clk 0:00:28.4]}
35. Kf4 {[%clk 0:02:06.4]} 35... d3 {[%clk 0:00:20.3]} 36. Rd4 {[%clk
0:02:05.8]} 36... Re2 {[%clk 0:00:17.2]} 37. Rxd3 {[%clk 0:02:04.2]} 37... Rxg2
{[%clk 0:00:17.1]} 38. Rd7+ {[%clk 0:02:04]} 38... Kf8 {[%clk 0:00:16.8]} 39.
Rf7+ {[%clk 0:02:02.2]} 39... Kg8 {[%clk 0:00:14.8]} 40. Rxa7 {[%clk 0:02:02.1]}
40... Re2 {[%clk 0:00:13.1]} 41. h4 {[%clk 0:01:59.3]} 41... Kh7 {[%clk
0:00:14]} 42. h5 {[%clk 0:01:58.6]} 42... Re1 {[%clk 0:00:13.8]} 43. b4 {[%clk
0:01:57.3]} 43... Re2 {[%clk 0:00:13.6]} 44. b5 {[%clk 0:01:57.3]} 44... Rb2
{[%clk 0:00:13.6]} 45. Ra8 {[%clk 0:01:55]} 45... Rb4+ {[%clk 0:00:13.4]} 46.
Ke3 {[%clk 0:01:54.1]} 46... Rg4 {[%clk 0:00:12.2]} 47. e7 {[%clk 0:01:52.6]}
47... g6 {[%clk 0:00:11.5]} 48. e8=Q {[%clk 0:01:48.6]} 48... Re4+ {[%clk
0:00:09.4]} 49. Kxe4 {[%clk 0:01:46.6]} 49... gxf5+ {[%clk 0:00:10.3]} 50. Kd5
{[%clk 0:01:45.5]} 50... f4 {[%clk 0:00:09.6]} 51. Qg6# {[%clk 0:01:44.6]} 1-0

[Event "*** SCC Grand Prix: Titled Tuesday Blitz"]
[Site "Chess.com"]
[Date "2020.09.29"]
[Round "2"]
[White "ENajer77"]
[Black "kleopl"]
[Result "1-0"]
[WhiteElo "2703"]
[BlackElo "2457"]
[TimeControl "180+1"]
[EndTime "10:16:12 PDT"]
[Termination "ENajer77 won by resignation"]

1. e4 {[%clk 0:03:00.9]} 1... c6 {[%clk 0:02:59.5]} 2. d4 {[%clk 0:03:00.2]}
2... d5 {[%clk 0:03:00]} 3. e5 {[%clk 0:02:58]} 3... Bf5 {[%clk 0:02:57.2]} 4.
h4 {[%clk 0:02:57.5]} 4... h5 {[%clk 0:02:56.5]} 5. Bd3 {[%clk 0:02:57.5]} 5...
Bxd3 {[%clk 0:02:55.8]} 6. Qxd3 {[%clk 0:02:57.8]} 6... Qa5+ {[%clk 0:02:54.8]}
7. Bd2 {[%clk 0:02:50.1]} 7... Qa6 {[%clk 0:02:54.9]} 8. e6 {[%clk 0:02:50.3]}
8... Qxd3 {[%clk 0:02:52.9]} 9. exf7+ {[%clk 0:02:50.6]} 9... Kxf7 {[%clk
0:02:53.8]} 10. cxd3 {[%clk 0:02:51]} 10... Nd7 {[%clk 0:02:52.4]} 11. Nf3
{[%clk 0:02:49.4]} 11... c5 {[%clk 0:02:21.3]} 12. dxc5 {[%clk 0:02:31.4]} 12...
Nxc5 {[%clk 0:02:17.1]} 13. Ke2 {[%clk 0:02:24.6]} 13... Nf6 {[%clk 0:02:11.7]}
14. Ne5+ {[%clk 0:02:21.1]} 14... Ke6 {[%clk 0:02:09.7]} 15. Ng6 {[%clk
0:02:19.4]} 15... Rg8 {[%clk 0:02:08.4]} 16. Be3 {[%clk 0:02:19.2]} 16... Ncd7
{[%clk 0:02:06.3]} 17. Rc1 {[%clk 0:01:41.4]} 17... Kf7 {[%clk 0:01:53.3]} 18.
Nxf8 {[%clk 0:01:41.3]} 18... Rgxf8 {[%clk 0:01:53.2]} 19. Rc7 {[%clk
0:01:39.7]} 19... b6 {[%clk 0:01:40.6]} 20. Na3 {[%clk 0:01:34.8]} 20... Rfc8
{[%clk 0:01:28]} 21. Rac1 {[%clk 0:01:33.4]} 21... Rxc7 {[%clk 0:01:13.7]} 22.
Rxc7 {[%clk 0:01:33]} 22... Ke6 {[%clk 0:01:11.3]} 23. Nb5 {[%clk 0:01:25.3]}
23... a6 {[%clk 0:01:11.1]} 24. Nd4+ {[%clk 0:01:20.7]} 24... Kf7 {[%clk
0:01:01.6]} 25. Bg5 {[%clk 0:01:19.4]} 25... Nc5 {[%clk 0:00:52]} 26. Nc6 {[%clk
0:01:10.1]} 26... Re8 {[%clk 0:00:50]} 27. b4 {[%clk 0:00:59.2]} 27... Ne6
{[%clk 0:00:47.5]} 28. Rb7 {[%clk 0:00:58]} 28... b5 {[%clk 0:00:39.3]} 29. Ra7
{[%clk 0:00:57.7]} 29... g6 {[%clk 0:00:23.9]} 30. Rxa6 {[%clk 0:00:51.9]} 30...
Rc8 {[%clk 0:00:23.4]} 31. Ne5+ {[%clk 0:00:51.3]} 31... Kg7 {[%clk 0:00:23.7]}
32. Rxe6 {[%clk 0:00:51.6]} 1-0

[Event "*** SCC Grand Prix: Titled Tuesday Blitz"]
[Site "Chess.com"]
[Date "2020.09.29"]
[Round "2"]
[White "tomsishere"]
[Black "parnali1611"]
[Result "0-1"]
[WhiteElo "2339"]
[BlackElo "2113"]
[TimeControl "180+1"]
[EndTime "10:16:12 PDT"]
[Termination "parnali1611 won by checkmate"]

1. d4 {[%clk 0:00:31.3]} 1... d5 {[%clk 0:02:56.5]} 2. Nf3 {[%clk 0:00:32.2]}
2... Nf6 {[%clk 0:02:53.1]} 3. e3 {[%clk 0:00:33.1]} 3... e6 {[%clk 0:02:47.2]}
4. Be2 {[%clk 0:00:34]} 4... c5 {[%clk 0:02:43]} 5. O-O {[%clk 0:00:34.9]} 5...
Nc6 {[%clk 0:02:39.8]} 6. b3 {[%clk 0:00:35]} 6... Bd6 {[%clk 0:02:23.3]} 7. Bb2
{[%clk 0:00:34.3]} 7... cxd4 {[%clk 0:02:18.4]} 8. exd4 {[%clk 0:00:29.5]} 8...
O-O {[%clk 0:02:11.2]} 9. Nbd2 {[%clk 0:00:25.5]} 9... b6 {[%clk 0:01:52.8]} 10.
Ne5 {[%clk 0:00:25.3]} 10... Bb7 {[%clk 0:01:47.5]} 11. Ndf3 {[%clk 0:00:25.8]}
11... Ne7 {[%clk 0:01:38.5]} 12. a3 {[%clk 0:00:25.8]} 12... Rc8 {[%clk
0:01:37.9]} 13. Bd3 {[%clk 0:00:25.9]} 13... Ne4 {[%clk 0:01:28]} 14. Re1 {[%clk
0:00:21.9]} 14... f6 {[%clk 0:01:21.8]} 15. Ng4 {[%clk 0:00:21.9]} 15... Qe8
{[%clk 0:01:19.2]} 16. c4 {[%clk 0:00:21]} 16... Qh5 {[%clk 0:01:14.7]} 17. Ne3
{[%clk 0:00:20.1]} 17... Nf5 {[%clk 0:01:02.1]} 18. Nxf5 {[%clk 0:00:19.2]}
18... exf5 {[%clk 0:01:01.3]} 19. cxd5 {[%clk 0:00:19.2]} 19... Bxd5 {[%clk
0:01:00.4]} 20. g3 {[%clk 0:00:18]} 20... Kh8 {[%clk 0:00:51.2]} 21. Rc1 {[%clk
0:00:16.3]} 21... Rxc1 {[%clk 0:00:48.2]} 22. Bxc1 {[%clk 0:00:17.2]} 22... Nc3
{[%clk 0:00:47.8]} 23. Qc2 {[%clk 0:00:03.5]} 23... Qxf3 {[%clk 0:00:45.8]} 24.
Qxc3 {[%clk 0:00:03.2]} 24... Qg2# {[%clk 0:00:44.5]} 0-1

[Event "*** SCC Grand Prix: Titled Tuesday Blitz"]
[Site "Chess.com"]
[Date "2020.09.29"]
[Round "2"]
[White "FairChess_on_YouTube"]
[Black "Nikolaj_6"]
[Result "1-0"]
[WhiteElo "2939"]
[BlackElo "2582"]
[TimeControl "180+1"]
[EndTime "10:16:17 PDT"]
[Termination "FairChess_on_YouTube won by resignation"]

1. d4 {[%clk 0:03:00.9]} 1... Nf6 {[%clk 0:02:59.6]} 2. c4 {[%clk 0:02:56.3]}
2... c5 {[%clk 0:02:59.4]} 3. d5 {[%clk 0:02:52]} 3... e6 {[%clk 0:02:59.5]} 4.
Nc3 {[%clk 0:02:51.2]} 4... exd5 {[%clk 0:02:59.1]} 5. cxd5 {[%clk 0:02:51.1]}
5... d6 {[%clk 0:02:59.6]} 6. e4 {[%clk 0:02:49.8]} 6... g6 {[%clk 0:02:59.7]}
7. Nf3 {[%clk 0:02:46.5]} 7... a6 {[%clk 0:02:59]} 8. a4 {[%clk 0:02:44.9]} 8...
Bg4 {[%clk 0:02:58.4]} 9. Be2 {[%clk 0:02:41.6]} 9... Bxf3 {[%clk 0:02:57.4]}
10. Bxf3 {[%clk 0:02:41.5]} 10... Bg7 {[%clk 0:02:57.6]} 11. Bf4 {[%clk
0:02:38]} 11... O-O {[%clk 0:02:57.1]} 12. O-O {[%clk 0:02:37.6]} 12... Ne8
{[%clk 0:02:57.2]} 13. Qb3 {[%clk 0:02:30.1]} 13... b6 {[%clk 0:02:48.7]} 14.
Bg4 {[%clk 0:02:17.1]} 14... Ra7 {[%clk 0:02:39]} 15. g3 {[%clk 0:02:13.5]}
15... Nd7 {[%clk 0:02:39]} 16. Rae1 {[%clk 0:01:52.3]} 16... Ne5 {[%clk
0:02:35.5]} 17. Be2 {[%clk 0:01:52.1]} 17... Nc7 {[%clk 0:02:29.8]} 18. Bc1
{[%clk 0:01:39.4]} 18... b5 {[%clk 0:02:17.1]} 19. f4 {[%clk 0:01:30.9]} 19...
Nd7 {[%clk 0:02:10.5]} 20. e5 {[%clk 0:01:19.6]} 20... c4 {[%clk 0:02:04.5]} 21.
Qd1 {[%clk 0:01:17.2]} 21... dxe5 {[%clk 0:02:03.4]} 22. f5 {[%clk 0:01:16.8]}
22... Nc5 {[%clk 0:01:39.2]} 23. d6 {[%clk 0:01:08.5]} 23... Ne8 {[%clk
0:01:39.1]} 24. Be3 {[%clk 0:01:08.1]} 24... Qc8 {[%clk 0:01:09.2]} 25. Qd5
{[%clk 0:00:58.2]} 25... Nd3 {[%clk 0:00:26]} 26. Bxd3 {[%clk 0:00:55.6]} 26...
Rd7 {[%clk 0:00:26]} 27. Be4 {[%clk 0:00:37.1]} 27... Rxd6 {[%clk 0:00:26]} 28.
Qb7 {[%clk 0:00:35.7]} 28... Qxb7 {[%clk 0:00:24.2]} 29. Bxb7 {[%clk 0:00:36.6]}
29... Nc7 {[%clk 0:00:22.3]} 30. Bc5 {[%clk 0:00:35.2]} 30... Rfd8 {[%clk
0:00:21.2]} 1-0

[Event "*** SCC Grand Prix: Titled Tuesday Blitz"]
[Site "Chess.com"]
[Date "2020.09.29"]
[Round "2"]
[White "Kaslask"]
[Black "Koksik_13"]
[Result "0-1"]
[WhiteElo "2357"]
[BlackElo "2658"]
[TimeControl "180+1"]
[EndTime "10:16:17 PDT"]
[Termination "Koksik_13 won on time"]

1. d4 {[%clk 0:03:00.9]} 1... e6 {[%clk 0:02:59.8]} 2. c4 {[%clk 0:02:59.8]}
2... d5 {[%clk 0:02:59.7]} 3. Nc3 {[%clk 0:02:59]} 3... a6 {[%clk 0:02:59.9]} 4.
cxd5 {[%clk 0:02:54.7]} 4... exd5 {[%clk 0:03:00.8]} 5. Bf4 {[%clk 0:02:53.9]}
5... c6 {[%clk 0:03:00.9]} 6. e3 {[%clk 0:02:53]} 6... Nf6 {[%clk 0:03:01.1]} 7.
h3 {[%clk 0:02:52.1]} 7... Bd6 {[%clk 0:03:01.4]} 8. Bxd6 {[%clk 0:02:38]} 8...
Qxd6 {[%clk 0:03:02.3]} 9. Bd3 {[%clk 0:02:37.4]} 9... O-O {[%clk 0:03:02]} 10.
Nf3 {[%clk 0:02:35.8]} 10... Nbd7 {[%clk 0:03:02.5]} 11. Qc2 {[%clk 0:02:35]}
11... Re8 {[%clk 0:03:02.9]} 12. O-O-O {[%clk 0:02:33.5]} 12... b5 {[%clk
0:03:01.9]} 13. Kb1 {[%clk 0:02:31.9]} 13... c5 {[%clk 0:02:54.3]} 14. dxc5
{[%clk 0:02:28.5]} 14... Nxc5 {[%clk 0:02:55.2]} 15. Nd4 {[%clk 0:02:12.1]}
15... Bd7 {[%clk 0:02:49.1]} 16. Bf5 {[%clk 0:02:07.8]} 16... b4 {[%clk
0:02:41.6]} 17. Bxd7 {[%clk 0:02:06]} 17... Qxd7 {[%clk 0:02:41]} 18. Nxd5
{[%clk 0:01:56.7]} 18... Qxd5 {[%clk 0:02:37.8]} 19. Nb3 {[%clk 0:01:51.4]}
19... Qxg2 {[%clk 0:02:26.6]} 20. Qxc5 {[%clk 0:01:38]} 20... Rac8 {[%clk
0:02:24.7]} 21. Qf5 {[%clk 0:01:33.4]} 21... Ne4 {[%clk 0:02:00.5]} 22. Rhf1
{[%clk 0:00:59]} 22... a5 {[%clk 0:01:53.2]} 23. Qg4 {[%clk 0:00:55.6]} 23...
Qxg4 {[%clk 0:01:49.4]} 24. hxg4 {[%clk 0:00:55.2]} 24... a4 {[%clk 0:01:50.3]}
25. Nd4 {[%clk 0:00:53.7]} 25... a3 {[%clk 0:01:50.8]} 26. f3 {[%clk 0:00:42.8]}
26... Nd6 {[%clk 0:01:40.5]} 27. e4 {[%clk 0:00:39.6]} 27... Nc4 {[%clk
0:01:40.6]} 28. Rfe1 {[%clk 0:00:29.7]} 28... Nxb2 {[%clk 0:01:40.2]} 29. Rc1
{[%clk 0:00:28.5]} 29... Na4 {[%clk 0:01:41.1]} 30. Nb5 {[%clk 0:00:21.8]} 30...
Rb8 {[%clk 0:01:38.5]} 31. Nd6 {[%clk 0:00:20]} 31... Red8 {[%clk 0:01:38.2]}
32. e5 {[%clk 0:00:20]} 32... b3 {[%clk 0:01:34.8]} 33. axb3 {[%clk 0:00:17.4]}
33... Rxb3+ {[%clk 0:01:35.6]} 34. Ka2 {[%clk 0:00:15.8]} 34... Rxf3 {[%clk
0:01:36.5]} 35. e6 {[%clk 0:00:12.5]} 35... fxe6 {[%clk 0:01:34.6]} 36. Rxe6
{[%clk 0:00:11]} 36... Nc3+ {[%clk 0:01:34.9]} 37. Ka1 {[%clk 0:00:08.1]} 37...
a2 {[%clk 0:01:25.9]} 38. g5 {[%clk 0:00:07.4]} 38... Rb8 {[%clk 0:01:25.9]} 39.
Re8+ {[%clk 0:00:03.5]} 39... Rxe8 {[%clk 0:01:25.8]} 40. Nxe8 {[%clk
0:00:03.2]} 40... h5 {[%clk 0:01:23.9]} 0-1